Cogmind - Beta 13 @@@ ROGUE MODE // 2024.05.04 @ 23:45:08 Player: Bace Troncons Result: Destroyed by S-43 Plague with Heavy Machine Gun Performance ------------- Evolutions (9) 4500 Regions Visited (12) 2400 Robots Destroyed (82) 410 Value Destroyed (1826) 1826 Prototype IDs (36) 720 Alien Tech Used (0) 0 Bonus (682) 682 TOTAL SCORE: 10538 Bonus ------- Follower Combat Kills 382 Aligned with FarCom 300 Cogmind --------- Core Integrity 0/1600 Matter 193/300 Energy 100/100 System Corruption 6% Temperature Cool (0) Movement Core (50) Location -1/Access Parts ------- > --- POWER (2) -------- (None) > --- PROPULSION (7) --- (None) > --- UTILITY (14) ----- (None) > --- WEAPON (2) ------- (None) > --- INVENTORY (5) ---- Advanced Signal Interpreter Advanced Reaction Control System Antimissile System Rocket Launcher Advanced Datajack Peak State ------------ > --- POWER ------------ Light Nuclear Core Light Particle Reactor > --- PROPULSION ------- Improved VTOL Module Cooled Nuclear Pulse Thruster Impulse Thruster Impulse Thruster Diametric Drive Q-thruster > --- UTILITY ---------- Structural Scanner Long-range Sensor Array Advanced Signal Interpreter Terrain Scan Processor Transport Network Coupler Improved Targeting Computer Stasis Canceller Advanced Reaction Control System Graphene Brace Hacking Suite Improved Hacking Suite > --- WEAPON ----------- Chainsword Heavy Pick > --- INVENTORY -------- Improved VTOL Module Advanced Signal Interpreter Advanced Reaction Control System Rocket Launcher Deploy-a-Sentry [Rating: 108] Favorites ----------- Power Ion Engine Engine Ion Engine Power Core Light Fission Core Reactor Light Particle Reactor Propulsion Light Treads Treads Light Treads Leg Centrium Leg Hover Unit Improved Gyrokinetic Inverter Flight Unit Improved VTOL Module Utility Structural Scanner Device Structural Scanner Storage Large Storage Unit Processor Advanced Signal Interpreter Hackware System Shield Protection Hardened Medium Armor Plating Weapon Assault Rifle Energy Gun Enhanced Quantum Rifle Energy Cannon Particle Cannon Ballistic Gun Assault Rifle Ballistic Cannon Improved Light Cannon Launcher Rocket Launcher Special Weapon Advanced Remote Datajack Impact Weapon Flail Slashing Weapon Chainsword Piercing Weapon Heavy Pick Build | -11 -10 -10 -10 -9 -8 -7 -6 -5 -4 -3 -2 -1 ------- Run | Yrd Mat Min Exi Min Mat Fac Fac Fac Fac Res Res Acc Slots Evolved 18 | . . . . . 4 2 2 2 2 2 2 2 Power 1 | . . . . . . . . 1 . . . . Propulsion 5 | . . . . . 1 2 . . 1 . . 1 Utility 12 | . . . . . 3 . 2 1 1 2 2 1 Weapon . | . . . . . . . . . . . . . Parts Attached 149 | 6 18 8 . . 26 14 9 10 22 23 6 7 Power 14 | 1 1 1 . . 1 . 2 3 2 2 1 . Engine 4 | 1 1 1 . . . . . 1 . . . . Core 8 | . . . . . 1 . 2 2 2 1 . . Reactor 2 | . . . . . . . . . . 1 1 . Propulsion 37 | 2 1 . . . 3 11 . 1 8 5 2 4 Treads 10 | 2 1 . . . 3 4 . . . . . . Leg 1 | . . . . . . . . . . . . 1 Wheel . | . . . . . . . . . . . . . Hover 3 | . . . . . . . . . . . . 3 Flight 23 | . . . . . . 7 . 1 8 5 2 . Utility 58 | 1 4 2 . . 8 1 6 5 12 15 3 1 Device 29 | . 3 1 . . 2 . 3 2 7 8 2 1 Storage 2 | 1 1 . . . . . . . . . . . Processor 10 | . . . . . 1 1 2 1 1 3 1 . Hackware 8 | . . . . . . . 1 1 3 3 . . Protection 9 | . . 1 . . 5 . . 1 1 1 . . Artifact . | . . . . . . . . . . . . . Weapon 40 | 2 12 5 . . 14 2 1 1 . 1 . 2 Energy Gun 4 | 2 . . . . . . . . . . . 2 Energy Cannon 1 | . 1 . . . . . . . . . . . Ballistic Gun 16 | . 6 4 . . 5 1 . . . . . . Ballistic Cannon 2 | . . . . . 2 . . . . . . . Launcher 8 | . 4 1 . . 3 . . . . . . . Special Weapon 1 | . . . . . . . . . . 1 . . Impact Weapon 2 | . 1 . . . 1 . . . . . . . Slashing Weapon 1 | . . . . . . . . 1 . . . . Piercing Weapon 5 | . . . . . 3 1 1 . . . . . Special Melee Weapon . | . . . . . . . . . . . . . Unidentified Prototypes 3 | . . . . . . 1 . 1 1 . . . Parts Lost 33 | . 1 1 . . 3 . . 1 6 20 . 1 Power 5 | . . 1 . . . . . . 1 3 . . Propulsion 8 | . . . . . 1 . . 1 . 5 . 1 Utility 18 | . 1 . . . 2 . . . 5 10 . . Weapon 2 | . . . . . . . . . . 2 . . Highest Loss Streak 9 | . 1 1 . . 2 . . 1 4 9 . 1 To Critical Strikes . | . . . . . . . . . . . . . Average Slot Usage (%) 92 | . 99 100 100 100 98 99 99 96 98 82 13 26 Engine 5 | . 14 14 14 14 6 . . 2 . . . . Core 3 | . . . . . 2 7 6 5 9 5 . . Treads 16 | . 28 28 28 28 26 30 . . . . . . Flight 11 | . . . . . . 7 33 28 30 24 3 6 Device 14 | . 13 7 14 14 12 15 16 20 19 17 7 8 Storage 6 | . 14 14 14 14 9 6 . . . . . . Processor 7 | . . . . . 9 7 20 15 11 13 1 3 Hackware 2 | . . . . . . . 6 7 7 7 . . Protection 5 | . . 7 . . 14 7 2 . 6 2 . . Ballistic Gun 9 | . 17 26 28 28 9 7 6 . . . . . Launcher 1 | . 2 2 . . 3 . . . . . . . Slashing Weapon 1 | . . . . . . . . 4 5 2 . . Piercing Weapon 2 | . . . . . 2 6 6 5 5 3 . . Naked Turns 131 | . . . . . . . . . . 78 11 42 Heaviest Build 46 | 14 33 33 29 29 42 41 23 27 46 40 22 12 Greatest Support 103 | 40 40 40 40 40 60 103 26 27 40 40 23 30 Greatest Overweight (x) 7 | . . . . . 1 . . 1 1 2 7 1 Average Overweight (x) . | . . . . . . . . . . . . . Largest Inventory Capacity 15 | 8 15 15 15 15 15 15 5 5 5 5 5 5 Average Capacity 10 | 6 13 15 15 15 15 13 5 5 5 5 5 5 Most Carried 15 | 4 15 15 15 15 15 15 5 5 5 5 5 5 Average Carried 10 | 2 12 14 14 15 14 12 4 5 4 4 4 5 Final Capacity 15 | 8 15 15 15 15 15 5 5 5 5 5 5 5 Final Carried 15 | 3 15 14 15 15 15 5 5 5 4 4 5 5 Class Distribution -------------------- 46% | Mutant 15% | Infiltrator-Ninja 14% | Assassin 7% | Hacker-Ninja 4% | Skirmisher 4% | Scavenger-Scout 3% | Scout Dominant Class ---------------- Mutant | -10/Materials Mutant | -10/Mines Mutant | -10/Exiles Skirmisher | -9/Mines Mutant | -8/Materials Assassin | -7/Factory Infiltrator-Ninja | -6/Factory Infiltrator-Ninja | -5/Factory Infiltrator-Ninja | -4/Factory Scavenger-Scout | -3/Research Mutant | -2/Research Mutant | -1/Access Resources | -11 -10 -10 -10 -9 -8 -7 -6 -5 -4 -3 -2 -1 ----------- Run | Yrd Mat Min Exi Min Mat Fac Fac Fac Fac Res Res Acc Matter Collected 2117 | 197 359 87 . 82 692 104 150 60 130 256 . . Remotely . | . . . . . . . . . . . . . Salvage Created 2872 | . 433 93 . . 799 121 222 525 503 176 . . Parts 171 | . 34 10 . . 35 4 19 31 28 10 . . Haulers Intercepted 12 | . 2 . . . 3 1 . 2 3 1 . . Recyclers Shooed 1 | . . . . . 1 . . . . . . . Parts Field Recycled . | . . . . . . . . . . . . . Retrieved Matter . | . . . . . . . . . . . . . Parts Self-Destructed . | . . . . . . . . . . . . . Prevented . | . . . . . . . . . . . . . Kills | -11 -10 -10 -10 -9 -8 -7 -6 -5 -4 -3 -2 -1 ------- Run | Yrd Mat Min Exi Min Mat Fac Fac Fac Fac Res Res Acc Combat Hostiles Destroyed 33 | . 11 5 . . 17 . . . . . . . Melee 3 | . . . . . 3 . . . . . . . Guns 9 | . 2 2 . . 5 . . . . . . . AOE 21 | . 9 3 . . 9 . . . . . . . Classes Destroyed 11 | . 7 1 . . 3 . . . . . . . Worker 8 | . 2 . . . 3 . . 1 2 . . . Builder 5 | . . . . . 1 . . 1 1 2 . . Tunneler 1 | . . 1 . . . . . . . . . . Hauler 12 | . 2 . . . 3 1 . 2 3 1 . . Recycler 6 | . 1 . . . 1 1 1 2 . . . . Operator 5 | . 1 . . . 1 . . . 2 1 . . Watcher 12 | . 2 . . . 2 . 4 1 3 . . . Swarmer 12 | . 6 3 . . 3 . . . . . . . Grunt 19 | . 5 2 . . 12 . . . . . . . Duelist 1 | . . . . . 1 . . . . . . . Sentry 1 | . . . . . 1 . . . . . . . Best Kill Streak 6 | . 4 3 . . 6 1 2 3 3 1 . . Combat Bots Only 5 | . 3 3 . . 5 . . . . . . . Max Kills in Single Turn 3 | . 3 2 . . 3 1 1 1 1 1 . . Gunslinging . | . . . . . . . . . . . . . Exploded 3 | . 2 2 . . 3 . . . . . . . Melee 1 | . . . . . 1 . . . . . . . Uniques/NPCs Destroyed . | . . . . . . . . . . . . . Combat | -11 -10 -10 -10 -9 -8 -7 -6 -5 -4 -3 -2 -1 -------- Run | Yrd Mat Min Exi Min Mat Fac Fac Fac Fac Res Res Acc Hostile Shots Fired 469 | . 28 25 . . 61 . 4 . 16 203 2 130 Missed 211 | . 7 6 . . 14 . 3 . 12 113 1 55 Damage Taken 6036 | . 389 220 . . 824 . 19 77 770 1967 25 1745 Core 2992 | . 100 49 . . 115 . . . 302 793 25 1608 Absorbed by Shields . | . . . . . . . . . . . . . Redirected to Shielding 225 | . . . . . 7 . . . 53 165 . . Regen/Repaired (Parts) 132 | . 44 . . . . . 19 15 54 . . . Core Remaining (%) 81 | 100 . . . 40 79 100 100 100 73 39 98 . Volleys Fired 132 | . 48 13 . . 64 4 . . . 1 . 2 Largest 2 | . 2 2 . . 2 2 . . . 1 . 1 Hottest 108 | . 108 40 . . 78 46 . . . 10 . 65 Shots Fired 198 | . 73 19 . . 95 8 . . . 1 . 2 Gun 144 | . 60 12 . . 62 8 . . . . . 2 Cannon 21 | . 7 . . . 14 . . . . . . . Launcher 32 | . 6 7 . . 19 . . . . . . . Special 1 | . . . . . . . . . . 1 . . Kinetic 129 | . 33 12 . . 76 8 . . . . . . Thermal 21 | . 19 . . . . . . . . . . 2 Explosive 32 | . 6 7 . . 19 . . . . . . . Electromagnetic 15 | . 15 . . . . . . . . . . . Robot Hit Streak 11 | . 11 6 . . 7 3 . . . 2 . . Robot Miss Streak 8 | . 5 1 . . 8 2 . . . . . 2 Penetration Max . | . . . . . . . . . . . . . Secondary Targets 1 | . . . . . 1 . . . . . . . Max Gunslinging Chain 1 | . . . . . 1 . . . . . . . Shots Hit Robots 181 | . 38 10 . . 67 10 5 14 26 11 . . Core Hits 117 | . 26 11 . . 50 2 4 5 12 6 . 1 Critical Kills . | . . . . . . . . . . . . . Critical Parts Destroyed 2 | . . . . . 2 . . . . . . . Critical Strikes 15 | . 4 . . . 5 1 1 2 2 . . . Burn 3 | . 3 . . . . . . . . . . . Destroy 1 | . . . . . 1 . . . . . . . Blast 1 | . . . . . 1 . . . . . . . Corrupt 1 | . 1 . . . . . . . . . . . Smash 1 | . . . . . 1 . . . . . . . Sever 1 | . . . . . . . . 1 . . . . Impale 7 | . . . . . 2 1 1 1 2 . . . Melee Attacks 287 | . . . . . 31 21 51 32 87 65 . . Impact 10 | . . . . . 10 . . . . . . . Slashing 58 | . . . . . . . . 14 19 25 . . Piercing 219 | . . . . . 21 21 51 18 68 40 . . Sneak Attacks 31 | . . . . . 4 4 1 8 10 4 . . Combat Hostiles . | . . . . . . . . . . . . . Follow-up Attacks 10 | . . . . . 1 . . 1 7 1 . . Damage Inflicted 7491 | . 917 295 . . 2671 322 280 848 1544 603 . 11 Guns 1102 | . 398 90 . . 535 79 . . . . . . Cannons 160 | . 63 . . . 97 . . . . . . . Explosions 2058 | . 456 205 . . 1397 . . . . . . . Melee 4155 | . . . . . 637 243 280 848 1544 603 . . Ramming 16 | . . . . . 5 . . . . . . 11 Kinetic 984 | . 183 90 . . 632 79 . . . . . . Thermal 206 | . 206 . . . . . . . . . . . Explosive 1987 | . 385 205 . . 1397 . . . . . . . Electromagnetic 143 | . 143 . . . . . . . . . . . Impact 159 | . . . . . 159 . . . . . . . Slashing 914 | . . . . . . . . 386 300 228 . . Piercing 3082 | . . . . . 478 243 280 462 1244 375 . . Highest Corruption 12 | . . . . . . . . . 12 . 1 6 Average Corruption 8 | . . . . . . . . . 10 . 1 4 Corruption Purged 3 | . . . . . . . . . 3 . . . Corruption Blocked . | . . . . . . . . . . . . . Effects 6 | . . . . . . . . . 6 . . . Message Errors 2 | . . . . . . . . . 2 . . . Matter Fused 1 | . . . . . . . . . 1 . . . Data Loss (minor) 1 | . . . . . . . . . 1 . . . Alerts 2 | . . . . . . . . . 2 . . . Overload Shots . | . . . . . . . . . . . . . Overflow Damage 615 | . 32 . . . 123 50 93 132 127 58 . . Projectiles 17 | . 17 . . . . . . . . . . . Explosions 59 | . 15 . . . 44 . . . . . . . Melee 539 | . . . . . 79 50 93 132 127 58 . . Knockbacks 1 | . . . . . 1 . . . . . . . Impact 1 | . . . . . 1 . . . . . . . Kinetic . | . . . . . . . . . . . . . Secondary . | . . . . . . . . . . . . . Self-Inflicted Damage 265 | . 183 17 . . 60 . . . . . . 5 Shots 9 | . 6 1 . . 2 . . . . . . . Rammed 6 | . . . . . 1 . . . . . . 5 Targets Rammed 6 | . . . . . 1 . . . . . . 5 Kicked . | . . . . . . . . . . . . . Crushed . | . . . . . . . . . . . . . Highest Temperature 381 | . 234 46 . . 45 46 39 5 381 191 . . Average Temperature 57 | . 78 17 . . 9 21 7 3 87 43 . . Received Heat Transfer 705 | . 81 63 . . 360 . 9 . . 138 . 54 Effects 2 | . . . . . . . . . 2 . . . Interference 1 | . . . . . . . . . 1 . . . Short Circuit 1 | . . . . . . . . . 1 . . . Siege Activations . | . . . . . . . . . . . . . Robots Corrupted . | . . . . . . . . . . . . . Combat Hostiles . | . . . . . . . . . . . . . Parts Fried 3 | . 1 . . . 2 . . . . . . . Impact Corruptions 2 | . . . . . 2 . . . . . . . Robots Melted . | . . . . . . . . . . . . . Combat Hostiles . | . . . . . . . . . . . . . Parts Melted . | . . . . . . . . . . . . . Heat Transferred 655 | . 655 . . . . . . . . . . . Parts Sabotaged . | . . . . . . . . . . . . . Parts Stolen . | . . . . . . . . . . . . . Parts Stripped . | . . . . . . . . . . . . . Power Chain Reactions 1 | . 1 . . . . . . . . . . . Alert | -11 -10 -10 -10 -9 -8 -7 -6 -5 -4 -3 -2 -1 ------- Run | Yrd Mat Min Exi Min Mat Fac Fac Fac Fac Res Res Acc Peak Influence 662 | . 203 198 . . 269 211 346 262 281 662 417 294 Initial 372 | . . 53 . . . 80 . 169 32 63 372 249 Average 140 | . 105 95 . . 116 66 130 186 144 289 380 246 Maximum Alert Level 2 | . 1 . . . 1 1 1 1 1 2 2 1 Low Security (%) 73 | 100 99 100 . 100 66 99 73 59 72 42 . 11 Level 1 23 | . . . . . 33 . 26 40 27 27 77 88 Level 2 3 | . . . . . . . . . . 30 22 . Level 3 . | . . . . . . . . . . . . . Level 4 . | . . . . . . . . . . . . . Level 5 . | . . . . . . . . . . . . . High Security . | . . . . . . . . . . . . . Max Security . | . . . . . . . . . . . . . Squads Dispatched 27 | . 1 . . . 3 2 4 3 4 8 . 2 Investigation 10 | . . . . . 2 . 3 1 1 2 . 1 Extermination 3 | . . . . . . . . . 1 1 . 1 Reinforcement 13 | . 1 . . . 1 2 . 2 2 5 . . Assault 1 | . . . . . . . 1 . . . . . Garrison . | . . . . . . . . . . . . . Intercept . | . . . . . . . . . . . . . Searches Triggered 1 | . . . . . . . . . . 1 . . Construction Impeded . | . . . . . . . . . . . . . Haulers Reinforced 4 | . . . . . . 1 . 1 . 2 . . Active Scanning Responses . | . . . . . . . . . . . . . Cargo Convoy Interrupts . | . . . . . . . . . . . . . Stealth | -11 -10 -10 -10 -9 -8 -7 -6 -5 -4 -3 -2 -1 --------- Run | Yrd Mat Min Exi Min Mat Fac Fac Fac Fac Res Res Acc Distress Signals 7 | . 1 . . . . 2 1 . . 3 . . Communications Jammed 4 | . . . . . . . . . 4 . . . Distress Signals 4 | . . . . . . . . . 4 . . . Times Spotted 181 | . 23 5 . . 29 9 13 . 17 63 3 19 Peak Tracking Total 15 | . 3 3 . . 6 5 7 . 9 8 3 15 Tactical Retreats 31 | . 1 . . . 1 . 3 . 6 17 1 2 Traps | -11 -10 -10 -10 -9 -8 -7 -6 -5 -4 -3 -2 -1 ------- Run | Yrd Mat Min Exi Min Mat Fac Fac Fac Fac Res Res Acc Traps Triggered 4 | . . . . . . . . 1 . 2 . 1 Indirectly . | . . . . . . . . . . . . . Trap Hack Attempts . | . . . . . . . . . . . . . Triggered . | . . . . . . . . . . . . . Disarmed . | . . . . . . . . . . . . . Reprogrammed . | . . . . . . . . . . . . . Reused . | . . . . . . . . . . . . . Traps Extracted . | . . . . . . . . . . . . . Installed . | . . . . . . . . . . . . . Triggered . | . . . . . . . . . . . . . Machines | -11 -10 -10 -10 -9 -8 -7 -6 -5 -4 -3 -2 -1 ---------- Run | Yrd Mat Min Exi Min Mat Fac Fac Fac Fac Res Res Acc Machines Disabled 7 | . 2 . . . 3 . 1 . . 1 . . Max in Single Turn 2 | . 1 . . . 2 . 1 . . 1 . . Garrison Access 6 | . . . . . . . 2 1 1 1 . 1 Machines Repaired . | . . . . . . . . . . . . . Machines Dismantled . | . . . . . . . . . . . . . Machines Sabotaged . | . . . . . . . . . . . . . Overloaded Fab Kills . | . . . . . . . . . . . . . Hacking | -11 -10 -10 -10 -9 -8 -7 -6 -5 -4 -3 -2 -1 --------- Run | Yrd Mat Min Exi Min Mat Fac Fac Fac Fac Res Res Acc Machines Accessed 69 | . 9 . 1 . 6 4 14 5 16 10 1 3 Terminals 36 | . 6 . . . 5 2 5 1 10 7 . . Fabricators 9 | . . . . . . 1 3 2 1 . 1 1 Repair Stations 6 | . 1 . . . 1 . 1 1 1 1 . . Recycling Units 7 | . 2 . . . . . 1 . 2 1 . 1 Scanalyzers 4 | . . . . . . 1 2 . 1 . . . Garrison Access 6 | . . . . . . . 2 1 1 1 . 1 Total Hacks 166 | . 26 . 1 . 22 7 34 9 39 22 2 4 Successful 66 | . 10 . 1 . 9 2 12 5 18 7 . 2 Failed 98 | . 15 . . . 13 5 22 4 20 15 2 2 Catastrophic 22 | . 4 . . . 3 1 4 2 4 2 1 1 Database Lockouts 2 | . 1 . . . . . . . 1 . . . Manual 35 | . 10 . 1 . 6 1 4 . 10 3 . . Terminals 99 | . 19 . . . 19 3 14 2 27 15 . . Fabricators 15 | . . . . . . 2 5 3 1 . 2 2 Repair Stations 18 | . 2 . . . 3 . 3 3 3 4 . . Recycling Units 12 | . 5 . . . . . 2 . 3 1 . 1 Scanalyzers 11 | . . . . . . 2 7 . 2 . . . Garrison Access 10 | . . . . . . . 3 1 3 2 . 1 Terminal Hacks 35 | . 6 . 1 . 8 . 5 . 10 5 . . Record 9 | . . . . . 1 . 2 . 5 1 . . Part Schematic 1 | . . . . . . . . . . 1 . . Robot Analysis 5 | . 1 . . . 2 . . . . 2 . . Prototype ID Bank 5 | . 2 . . . 1 . 1 . 1 . . . Open DSF 1 | . . . . . . . . . 1 . . . Branch Access Points 1 | . . . . . 1 . . . . . . . Terminal Index 1 | . . . . . . . . . 1 . . . Unreport Threat 1 | . . . . . 1 . . . . . . . Locate Traps 1 | . . . . . . . . . 1 . . . Dispatch Records 1 | . . . . . . . 1 . . . . . Maintenance Status 2 | . . . . . 1 . . . 1 . . . Surveillance Status 1 | . 1 . . . . . . . . . . . Hauler Manifests 3 | . 1 . . . 1 . . . . 1 . . Zone Layout 2 | . 1 . . . . . 1 . . . . . Derelict Proto ID Bank 1 | . . . 1 . . . . . . . . . Fabricator Hacks 5 | . . . . . . 1 . 2 1 . . 1 Network Status 2 | . . . . . . 1 . . 1 . . . Build 3 | . . . . . . . . 2 . . . 1 Repair Station Hacks 10 | . 2 . . . 1 . 2 2 2 1 . . Scan Component 6 | . 1 . . . 1 . 1 1 1 1 . . Repair 4 | . 1 . . . . . 1 1 1 . . . Recycling Unit Hacks 4 | . 2 . . . . . . . 2 . . . Retrieve Components 4 | . 2 . . . . . . . 2 . . . Scanalyzer 7 | . . . . . . 1 4 . 2 . . . Insert Component 4 | . . . . . . 1 2 . 1 . . . Analyze 3 | . . . . . . . 2 . 1 . . . Garrison Access Hacks 5 | . . . . . . . 1 1 1 1 . 1 Seal Access 5 | . . . . . . . 1 1 1 1 . 1 Unauthorized Hacks . | . . . . . . . . . . . . . Terminals . | . . . . . . . . . . . . . Fabricators . | . . . . . . . . . . . . . Repair Stations . | . . . . . . . . . . . . . Recycling Units . | . . . . . . . . . . . . . Scanalyzers . | . . . . . . . . . . . . . Garrison Access . | . . . . . . . . . . . . . Data Cores Recovered 2 | . . . . . . . . . 1 1 . . Used 2 | . . . . . . . . . 1 1 . . Hacking Detections 50 | . 6 . . . 5 4 11 2 10 9 1 2 Full Trace Events 9 | . . . . . 2 . 3 1 1 2 . . Feedback Events . | . . . . . . . . . . . . . Feedback Blocked . | . . . . . . . . . . . . . Robot Schematics Acquired . | . . . . . . . . . . . . . Robots Built . | . . . . . . . . . . . . . Authchips . | . . . . . . . . . . . . . Time 76 | . . . . . . . . . . . . 76 Total Robot Build Rating . | . . . . . . . . . . . . . Part Schematics Acquired 3 | . . . . . . . 1 . 1 1 . . Parts Built 3 | . . . . . . . . 3 . . . . Authchips . | . . . . . . . . . . . . . Time 186 | . . . . . . . . 186 . . . . Total Part Build Rating 25 | . . . . . . . . 25 . . . . Parts Repaired 4 | . 1 . . . . . 1 1 1 . . . Time 102 | . 26 . . . . . 38 13 25 . . . Parts Recycled . | . . . . . . . . . . . . . Recycled Matter . | . . . . . . . . . . . . . Retrieved Matter . | . . . . . . . . . . . . . Retrieved Components 18 | . 17 . . . . . . . 1 . . . Parts Scanalyzed 4 | . . . . . . 1 2 . 1 . . . Part Schematics Acquired 2 | . . . . . . . 1 . 1 . . . Parts Damaged 1 | . . . . . . . 1 . . . . . Bothacking | -11 -10 -10 -10 -9 -8 -7 -6 -5 -4 -3 -2 -1 ------------ Run | Yrd Mat Min Exi Min Mat Fac Fac Fac Fac Res Res Acc Used RIF Installer . | . . . . . . . . . . . . . Robots Hacked 1 | . . . . . . . . . . 1 . . Non-combat 1 | . . . . . . . . . . 1 . . Combat . | . . . . . . . . . . . . . Robot Hacks Applied 1 | . . . . . . . . . . 1 . . parse_system 1 | . . . . . . . . . . 1 . . Relay Couplers Released . | . . . . . . . . . . . . . Fabnet Peak Effective % . | . . . . . . . . . . . . . Robots Rewired . | . . . . . . . . . . . . . Allies Hacked . | . . . . . . . . . . . . . Hacks Repelled . | . . . . . . . . . . . . . Allies | -11 -10 -10 -10 -9 -8 -7 -6 -5 -4 -3 -2 -1 -------- Run | Yrd Mat Min Exi Min Mat Fac Fac Fac Fac Res Res Acc Total Allies . | . . . . . . . . . . . . . Largest Group . | . . . . . . . . . . . . . Highest-Rated Group . | . . . . . . . . . . . . . Highest-Rated Ally . | . . . . . . . . . . . . . Total Orders . | . . . . . . . . . . . . . Ally Attacks 34 | . . . . . 2 7 . . . 25 . . Total Damage 1844 | . . . . . 112 376 . . . 1356 . . Kills 15 | . . . . . 2 4 . . . 9 . . Allies Corrupted . | . . . . . . . . . . . . . Allies Melted . | . . . . . . . . . . . . . Turrets Deployed 3 | . . . . . 1 1 . . . 1 . . Intel | -11 -10 -10 -10 -9 -8 -7 -6 -5 -4 -3 -2 -1 ------- Run | Yrd Mat Min Exi Min Mat Fac Fac Fac Fac Res Res Acc Robot Analysis Total 5 | . 1 . . . 2 . . . . 2 . . Derelict Logs Recovered . | . . . . . . . . . . . . . Drone Launches 3 | . . . . . . . . . . 3 . . Drone Recoveries 1 | . . . . . . . . . . 1 . . Exploration | -11 -10 -10 -10 -9 -8 -7 -6 -5 -4 -3 -2 -1 ------------- Run | Yrd Mat Min Exi Min Mat Fac Fac Fac Fac Res Res Acc Turns Passed 8526 | 69 1378 553 379 220 1642 803 611 469 1084 719 149 450 Spaces Moved 7754 | 38 700 314 235 129 702 504 1083 442 1514 1425 207 461 Core 296 | 3 . . . . . . . . . 161 57 75 Treads 2462 | 35 700 314 235 129 702 347 . . . . . . Legs 96 | . . . . . . . . . . . . 96 Wheels . | . . . . . . . . . . . . . Hover 160 | . . . . . . . . . . . . 160 Flight 4740 | . . . . . . 157 1083 442 1514 1264 150 130 Fastest Speed 21 | 50 160 160 160 160 160 24 24 24 21 21 39 40 Average Speed 72 | 151 160 160 160 160 160 117 24 29 24 27 64 76 Slowest Speed 400 | 160 160 160 160 160 240 160 24 99 98 150 400 120 Overloaded Moves . | . . . . . . . . . . . . . Propulsion Burnouts . | . . . . . . . . . . . . . Robots Hopped 5 | . . . . . 1 . . . . . 4 . Cave-ins Triggered 1 | . . . . . . . . . 1 . . . Exploration Rate (%) 37 | 4 89 80 62 40 48 17 31 16 41 46 6 12 Regions Visited 12 Branch Regions 3 Pre-discovered Areas 1 | . . 1 . . . . . . . . . . Known Exits Taken 5 | . . . . . 1 1 1 1 1 . . . Unknown Exits Taken 7 | 1 1 1 1 1 . . . . . 1 1 . Scrap Searched 2 | . . 1 . 1 . . . . . . . . Spaces Dug 154 | . 10 . . . 14 12 42 12 33 31 . . Terrain Destroyed 327 | . 51 39 . . 107 12 42 12 33 31 . . Melee 135 | . . . . . 5 12 42 12 33 31 . . Projectile . | . . . . . . . . . . . . . AOE 192 | . 51 39 . . 102 . . . . . . . Terrain Rammed . | . . . . . . . . . . . . . Walls Destroyed . | . . . . . . . . . . . . . Machines Disabled . | . . . . . . . . . . . . . Actions | -11 -10 -10 -10 -9 -8 -7 -6 -5 -4 -3 -2 -1 --------- Run | Yrd Mat Min Exi Min Mat Fac Fac Fac Fac Res Res Acc Total 9991 | 47 889 346 239 144 1094 683 1333 728 2080 1638 215 555 Wait 1563 | . 93 8 . 14 237 125 179 244 461 118 5 79 Move 7732 | 37 699 313 234 128 699 503 1082 441 1513 1424 198 461 Hop 5 | . . . . . 1 . . . . . 4 . Pick Up 58 | 4 17 1 3 1 19 3 4 . 4 1 1 . Fast Attach 76 | 5 6 . . . 5 2 4 9 12 20 6 7 Attach 19 | 1 . 1 . . 9 2 2 . 3 1 . . Detach 16 | . 2 . . . 2 . 2 4 2 4 . . Swap 54 | . 12 7 . . 12 10 3 1 7 2 . . Drop 77 | . 12 3 2 1 17 13 6 3 10 8 1 1 Fire 132 | . 48 13 . . 64 4 . . . 1 . 2 Melee 253 | . . . . . 28 21 51 26 68 59 . . Ram 5 | . . . . . . . . . . . . 5 Kick . | . . . . . . . . . . . . . Crush 1 | . . . . . 1 . . . . . . . Escape Stasis . | . . . . . . . . . . . . . Rewire . | . . . . . . . . . . . . . Trap . | . . . . . . . . . . . . . Miscellaneous . | . . . . . . . . . . . . . Route ------- -11/Scrapyard -10/Materials (discovered 5 exits: [*Mat x3] / [*Min x2]) -10/Mines (discovered 2 exits: [*Mat] / *Exi) -10/Exiles -9/Mines -8/Materials -7/Factory (discovered 2 exits: *Fac / *Low) -6/Factory -5/Factory -4/Factory (discovered 2 exits: *Res / *Upp) -3/Research (discovered 2 exits: *Res / *Qua) -2/Research (discovered 2 exits: *Acc x2) -1/Access History --------- Turn | Location | Event 18 | -11/Scrapyard | Discovered new exit (range 16) 70 | -11/Scrapyard | Entered Materials 316 | -10/Materials | Build established: Mutant 536 | -10/Materials | Discovered new exit (range 11) 859 | -10/Materials | Discovered new exit (range 11) 918 | -10/Materials | Discovered new exit (range 10) 1006 | -10/Materials | Repaired Grenade Launcher 1013 | -10/Materials | Discovered new exit (range 14) 1386 | -10/Materials | Discovered new exit (range 8) 1430 | -10/Materials | Central database locked down 1448 | -10/Materials | Entered Mines 1451 | -10/Mines | Learned location of Storage (-9) 1606 | -10/Mines | Core integrity fell below 50% 1671 | -10/Mines | Discovered new exit (range 6) 1735 | -10/Mines | A weapon hastily lodged in a ceiling crevice suddenly fell to the ground 1995 | -10/Mines | Deemed a non-threat by the Exiles lab entrance 1995 | -10/Mines | Discovered new exit (range 5) 2001 | -10/Mines | Entered Exiles 2040 | -10/Exiles | Met 8R-AWN 2069 | -10/Exiles | Met EX-HEX 2113 | -10/Exiles | Met EX-BIN 2131 | -10/Exiles | Aligned with FarCom system 2133 | -10/Exiles | Given EX-Vault access code 2173 | -10/Exiles | Opened EX-Vault 2181 | -10/Exiles | Found Deploy-a-Sentry 2188 | -10/Exiles | Found Deploy-a-Sentry 2190 | -10/Exiles | Found Deploy-a-Sentry 2226 | -10/Exiles | Warned to stay clear of 0b10 Research branches 2271 | -10/Exiles | Met EX-DEC 2367 | -10/Exiles | Discovered new exit (range 10) 2380 | -10/Exiles | Left Exiles lab with Deploy-a-Sentry 2380 | -10/Exiles | Entered Mines 2527 | -9/Mines | Received a Rocket Launcher from a helpful Derelict 2577 | -9/Mines | Discovered new exit (range 12) 2600 | -9/Mines | Entered Materials 2600 | -8/Materials | Evolved 4 slots: Propulsion x1, Utility x3 2706 | -8/Materials | Build established: Skirmisher 3035 | -8/Materials | Build established: Mutant 3538 | -8/Materials | DAS Turret deployed 4067 | -8/Materials | Discovered new exit (range 5) 4072 | -8/Materials | Identified exit to Factory 4143 | -8/Materials | Build established: Assassin 4242 | -8/Materials | Entered Factory 4242 | -7/Factory | Evolved 2 slots: Propulsion x2 4577 | -7/Factory | DAS Turret deployed 4972 | -7/Factory | Discovered new exit (range 5) 4974 | -7/Factory | Identified exit to Lower Caves 5044 | -7/Factory | Discovered new exit (range 5) 5045 | -7/Factory | Identified exit to Factory 5045 | -7/Factory | Entered another Factory area 5045 | -6/Factory | Evolved 2 slots: Utility x2 5346 | -6/Factory | Build established: Infiltrator-Ninja 5479 | -6/Factory | Repaired Imp. Sensor Array 5655 | -6/Factory | Discovered new exit (range 6) 5656 | -6/Factory | Identified exit to Factory 5656 | -6/Factory | Entered another Factory area 5656 | -5/Factory | Evolved 2 slots: Power x1, Utility x1 5835 | -5/Factory | Fabricated Lrn. Terrain Scanner (x1) 5855 | -5/Factory | Repaired Structural Scanner 6034 | -5/Factory | Fabricated Quantum Reactor (x2) 6085 | -5/Factory | Discovered new exit (range 6) 6089 | -5/Factory | Identified exit to Factory 6125 | -5/Factory | Entered another Factory area 6125 | -4/Factory | Evolved 2 slots: Propulsion x1, Utility x1 6241 | -4/Factory | Identified exit to DSF 6485 | -4/Factory | Central database locked down 6774 | -4/Factory | Repaired Lgt. Fission Core 6833 | -4/Factory | Build established: Hacker-Ninja 6938 | -4/Factory | Discovered new exit (range 4) 6939 | -4/Factory | Identified exit to Research 7016 | -4/Factory | Discovered new exit (range 7) 7017 | -4/Factory | Identified exit to Upper Caves 7051 | -4/Factory | Crushed by falling debris 7051 | -4/Factory | System corruption reached 10% 7082 | -4/Factory | Lost 4 parts (1p3u) 7209 | -4/Factory | Entered Research 7209 | -3/Research | Evolved 2 slots: Utility x2 7454 | -3/Research | Discovered new exit (range 16) 7458 | -3/Research | Identified exit to Quarantine 7510 | -3/Research | Build established: Scavenger-Scout 7510 | -3/Research | Lost 3 parts (3u) 7580 | -3/Research | Spotted B-86 Titan 7639 | -3/Research | DAS Turret deployed 7655 | -3/Research | Lost 3 parts (1n2u) 7709 | -3/Research | Search patrols dispatched 7850 | -3/Research | Released all parts (10) 7881 | -3/Research | Lost 9 parts (1p3n4u1w) 7895 | -3/Research | Core integrity fell below 50% 7921 | -3/Research | Discovered new exit (range 15) 7928 | -3/Research | Entered another Research area 7928 | -2/Research | Evolved 2 slots: Utility x2 8039 | -2/Research | Discovered new exit (range 15) 8046 | -2/Research | Discovered new exit (range 3) 8077 | -2/Research | Entered Access 8077 | -1/Access | Evolved 2 slots: Propulsion x1, Utility x1 8462 | -1/Access | Released all parts (9) 8478 | -1/Access | Core integrity fell below 50% 8486 | -1/Access | Released all parts (1) 8508 | -1/Access | Core integrity fell below 20% 8527 | -1/Access | Destroyed by S-43 Plague with Heavy Machine Gun Last Messages --------------- 08472_ P-80 Master resets S-43 Plague, system corruption cleaned. 08482_ K-01 Serf destroyed. 08486_ Released Imp. Gyrokinetic Inverter. 08486_ P-80 Master resets S-43 Plague, system corruption cleaned. 08492_ S-43 Plague destroyed. 08494_ Door malfunctions. 08496_ Slug penetrates Wall. 08496_ Penetrated by Slug. 08512_ Slug penetrates Wall. 08521_ Connecting with Fabricator... >>Build Building A-15 Conveyor... ETC: 76 08522_ Triggered Alarm Trap. 08522_ An alarm sounds. 08522_ ALERT: Alarm triggered, dispatching investigation squad. 08523_ Slammed into S-43 Plague. Map ----- +----------------------------------------------------+ | ?????????????????????????????????????????????????? | | ?????????????????????????????????????????????????? | | ?????????????????????????????????????????????????? | | ?????????????????????????????????????????????????? | | ?????????????????????????????????????????????????? | | ##???????????????????????????????????????????????? | | #???????????????????????????????????????????????? | | #???????????????????????????????????????????????? | | #???????????????????????????????????????????????? | | #???????????????##############??????????????????? | | #???????????????# #??????????????????? | | #???????????????# #??????????????????? | | ################# #??????????????????? | | ## # #??????????????????? | | ## # #??????????????????? | | ## # #??????????????????? | | ## / """ #??????????????????? | | ## h# """ #??????????????????? | | ## # F" #??????????????????? | | ### h # "" #??????????????????? | | ###### # * p #??????????????????? | | #????# # s #??????????????????? | | #????# ########s#####??????????????????? | | ######/####???# #??????????????????????? | | # #???#s#??????????????????????? | | # ! #???#@#??????????????????????? | | # ! #####s#??????????????????????? | | ### #### p #??????????????????????? | | #?#+#??#################??????????????????????? | | #?????????????????????????????????????????????? | | #?????????????????????????????????????????????? | | #?????????????????????????????????????????????? | | #?????????????????????????????????????????????? | | #?????????????????????????????????????????????? | | #?????????????????????????????????????????????? | | #?????????????????????????????????????????????? | | #?????????????????????????????????????????????? | | ? ???????????????????????????????????????????????? | | ?????????????????????????????????????????????????? | | ?????????????????????????????????????????????????? | | ?????????????????????????????????????????????????? | | ?????????????????????????????????????????????????? | | ?????????????????????????????????????????????????? | | ?????????????????????????????????????????????????? | | ?????????????????????????????????????????????????? | | ?????????????????????????????????????????????????? | | ?????????????????????????????????????????????????? | | ?????????????????????????????????????????????????? | | ?????????????????????????????????????????????????? | | ?????????????????????????????????????????????????? | +----------------------------------------------------+ Best States ------------- Heat Dissipation 52 Energy Generation 32 Energy Capacity 350 Matter Stores 300 Matter Capacity 300 Sight Range 16 Robot Scan Range 18 Terrain Scan Range 24 Terrain Scan Density 85 Jamming Range 12 Armor Coverage 225 Core Shielding 20 Propulsion Shielding 66 Point Defense Rating 240 Melee Speed Boost 20 Evasion (%) 77 Targeting Accuracy 6 Melee Accuracy 5 Recoil Reduction 5 Offensive Hacking 36 Defensive Hacking 20 Item Schematics ----------------- Lgt. Nuclear Core | -6/Factory | Scanalyzed Xenon Bombardment Thruster | -4/Factory | Scanalyzed Adv. Remote Datajack | -3/Research | Hacked Robot Schematics ------------------ None Fabricated ------------ Lrn. Terrain Scanner | x1 | -5/Factory | Preloaded Quantum Reactor | x2 | -5/Factory | Preloaded Alien Tech Used ----------------- None Achievements -------------- Denied? Dodgeball, But With Guns Streaker Watch This! Challenges ------------ None Game ------ Seed DisruptionChainRedistributor Manual? 0 Play Time 02:36:08 Cumulative 57.9 hours Start 2024.05.04 @ 19:15:08 End 2024.05.04 @ 23:45:08 Sessions 3 Manual Loads 0 Difficulty Rogue Special Mode None Game No. 87 Rogue 87 Adventurer 0 Explorer 0 Win Type - Total 0 Types 0/0/0/0/0/0/0/0/0 Lore% 29 Gallery% 37 Achievement% 29 Wizard Run 0 Options --------- Layout 1 ASCII 0 Keyboard 1 Movement Numpad Keybinds 0 Fullscreen 1 Font 24/Smallcaps Map View 50x35 Zoom Use 0% Tactical HUD 1 Map Filters NONE Filters NONE Steam 1 RUN: ea957b41-da44-4106-8927-59fc1851a70a